bitfinex-derivatives/quotes_ETHF0:USTF0_20250410
["timestamp","ask_amount","ask_price","bid_price","bid_amount"]
[1744327707158,9.97719634,1516.8,1516.7,1.31941]
[1744327707560,9.97719634,1516.8,1516.6,9.5188]
[1744327707856,9.97719634,1516.8,1516.7,1.31941]
[1744327708461,1.31941,1516.7,1516.6,6.311]
[1744327708662,14.50438634,1516.8,1516.6,6.311]
[1744327709362,1.6549,1516.7,1516.6,6.311]
[1744327709560,1.6549,1516.7,1516.6,7.6305]
[1744327709760,1.6549,1516.7,1516.6,9.3735]
[1744327710162,3.2078,1516.8,1516.7,1.31941]
[1744327710358,3.2078,1516.8,1516.7,3.06241]
[1744327710559,4.8627,1516.8,1516.7,3.06241]
[1744327710764,4.8627,1516.8,1516.7,1.743]
[1744327710956,4.8627,1516.8,1516.7,3.06241]
[1744327712162,4.8627,1516.8,1516.6,6.311]
[1744327712366,2.97431,1516.7,1516.6,6.311]
[1744327713266,1.6549,1516.7,1516.6,6.311]
[1744327714771,1.6549,1516.7,1516.5,0.00987524]
[1744327714962,4.5273,1516.6,1516.5,0.00987524]
[1744327715365,11.2559,1516.6,1516.5,0.00987524]
[1744327716261,6.2559,1516.6,1516.5,0.00987524]
[1744327716969,3.0481,1516.6,1516.5,0.00987524]
[1744327717366,3.0481,1516.6,1516.5,1.32946524]
[1744327717367,1.7286,1516.6,1516.5,1.32946524]
[1744327718168,1.7286,1516.6,1516.5,0.00987524]
[1744327719069,1.7286,1516.6,1516.5,1.74467524]
[1744327720081,1.7286,1516.6,1516.5,3.06426524]
[1744327720761,11.20127314,1516.8,1516.6,1.31948]
[1744327720961,11.20127314,1516.8,1516.7,1.31941]
[1744327720962,8.24651314,1516.8,1516.7,1.31941]
[1744327721162,9.88191314,1516.8,1516.6,9.08323]
[1744327721370,9.88191314,1516.8,1516.7,1.6946]
[1744327722166,9.88191314,1516.8,1516.7,3.01401]
[1744327722375,11.20124314,1516.8,1516.7,1.6946]
[1744327722675,9.88191314,1516.8,1516.7,1.6946]
[1744327724081,9.88191314,1516.8,1516.7,3.01401]
[1744327724368,9.88191314,1516.8,1516.7,1.6946]
[1744327724571,4.8432,1516.8,1516.7,1.6946]
[1744327724773,6.16253,1516.8,1516.7,1.6946]
[1744327724973,4.8432,1516.8,1516.7,1.6946]
[1744327725276,4.8432,1516.8,1516.7,3.01401]
[1744327725676,1.6354,1516.8,1516.7,3.01401]
[1744327725978,1.6354,1516.8,1516.7,1.6946]
[1744327726169,1.6354,1516.8,1516.7,3.01401]
[1744327726977,1.73127524,1516.9,1516.8,1.31933]
[1744327727172,1.73127524,1516.9,1516.8,2.90893]
[1744327727975,0.00987524,1516.9,1516.8,2.90893]
[1744327728172,0.00987524,1516.9,1516.8,4.35913]
[1744327728981,0.00987524,1516.9,1516.8,5.76923]
[1744327730276,0.00987524,1516.9,1516.8,10.76923]
[1744327730473,5.03871314,1517.1,1517.0,1.31915]
[1744327730673,5.03871314,1517.1,1517.0,10.55495]
[1744327730872,5.03871314,1517.1,1517.0,15.55495]
[1744327731075,5.03871314,1517.1,1517.0,17.22865]
[1744327731266,5.03871314,1517.1,1517.0,25.8361297]
[1744327732080,0.00987524,1517.2,1517.1,1.31906]
[1744327732375,0.00987524,1517.2,1517.1,2.99276]
[1744327732581,5.03871314,1517.5,1517.4,1.3188]
[1744327732878,5.03871314,1517.5,1517.4,10.5546]
[1744327733574,5.03871314,1517.5,1517.4,12.2019]
[1744327734175,5.03871314,1517.5,1517.4,25.96396554]
[1744327734576,5.03871314,1517.5,1517.4,12.2019]
[1744327734980,6.75311314,1517.5,1517.4,12.2019]
[1744327736089,1.7144,1517.5,1517.3,1.32869524]
[1744327736283,4.53633524,1517.6,1517.4,6.026]
[1744327736584,1.31872,1517.5,1517.4,6.026]
[1744327737489,6.31872,1517.5,1517.4,6.026]
[1744327738183,1.31872,1517.5,1517.4,6.026]
[1744327738386,6.31872,1517.5,1517.4,6.026]
[1744327738888,5.0,1517.5,1517.3,0.00987524]
[1744327739090,4.5266,1517.4,1517.3,0.00987524]
[1744327739691,9.5266,1517.4,1517.3,0.00987524]
[1744327740190,3.2078,1517.4,1517.3,0.00987524]
[1744327741187,0.00987524,1517.6,1517.5,1.31872]
[1744327741491,0.00987524,1517.6,1517.4,5.766]
[1744327741786,9.0598,1517.5,1516.7,1.3194]
[1744327741992,1.31915,1517.0,1516.6,1.31942]
[1744327742186,6.50556,1517.1,1516.6,5.766]
[1744327742387,1.3357,1517.0,1516.6,5.766]
[1744327742590,2.65488,1517.0,1516.7,1.32925524]
[1744327743291,1.31924,1516.9,1516.7,1.32928524]
[1744327745292,1.31924,1516.9,1516.7,2.90788524]
[1744327745797,2.65492,1517.0,1516.7,6.11568524]
[1744327747393,2.65492,1517.0,1516.8,1.31932]
[1744327747692,2.65492,1517.0,1516.7,6.11560524]
[1744327747892,1.3357,1517.0,1516.8,1.3193]
[1744327748092,1.728,1516.9,1516.8,1.3193]
[1744327749089,5.03871314,1517.2,1517.1,1.31906]
[1744327749293,5.03871314,1517.2,1517.0,5.766]
[1744327749592,1.7392,1517.1,1517.0,7.08515]
[1744327749985,1.7392,1517.1,1517.0,8.72945]
[1744327750388,5.03871314,1517.2,1517.1,1.31906]
[1744327750689,7.55806971,1517.4,1517.3,1.31889]
[1744327750690,2.51875657,1517.4,1517.3,1.31889]
[1744327750890,2.51875657,1517.4,1517.3,10.29269]
[1744327751092,2.51875657,1517.4,1517.3,23.8417015]
[1744327751291,2.51875657,1517.4,1517.3,5.766]
[1744327751604,4.16565657,1517.4,1517.3,7.08489]
[1744327752991,4.16565657,1517.4,1517.3,5.766]
[1744327753593,5.48445657,1517.4,1517.3,5.766]
[1744327753787,2.9657,1517.4,1517.3,5.766]
[1744327753988,1.6469,1517.4,1517.3,5.766]
[1744327754592,2.65517524,1517.6,1517.3,5.766]
[1744327754593,0.00987524,1517.6,1517.5,1.31872]
[1744327754997,1.68377524,1517.6,1517.4,1.5943]
[1744327755190,1.68377524,1517.6,1517.5,1.31872]
[1744327755798,3.00244524,1517.6,1517.3,7.08489]
[1744327755994,3.00246524,1517.6,1517.3,7.08482]
[1744327756201,1.6739,1517.5,1517.3,7.08482]
[1744327756801,1.6739,1517.5,1517.3,5.766]
[1744327757303,1.6739,1517.5,1517.3,7.08483]
[1744327757506,1.6739,1517.5,1517.4,1.3188]
[1744327758104,1.6739,1517.5,1517.3,5.766]
[1744327758299,2.99269,1517.5,1517.3,5.766]
[1744327758505,1.6739,1517.5,1517.3,7.08485]
[1744327758805,1.7035,1517.4,1517.3,7.08485]
[1744327759707,1.7035,1517.4,1517.2,3.2078]
[1744327759897,1.7035,1517.4,1517.0,5.765]
[1744327760099,3.2078,1517.3,1517.0,5.765]
[1744327760296,1.7035,1517.2,1517.0,5.765]
[1744327760596,3.02252,1517.2,1517.0,5.765]
[1744327760801,3.02252,1517.2,1517.0,7.08415]
[1744327760997,1.6647,1517.1,1517.0,7.08415]
[1744327762109,1.6647,1517.1,1517.0,5.765]
[1744327762406,1.6647,1517.1,1517.0,7.08415]
[1744327762604,5.9391,1517.5,1517.3,1.31884]
[1744327762810,1.6647,1517.4,1517.3,1.31884]
[1744327763010,1.6647,1517.4,1517.3,7.08384]
[1744327764207,1.6647,1517.4,1517.3,10.29164]
[1744327764408,1.6647,1517.4,1517.3,7.08384]
[1744327765317,0.00987524,1517.6,1517.5,1.31872]
[1744327765512,1.71377524,1517.6,1517.5,1.31872]
[1744327766810,1.71377524,1517.6,1517.5,2.62072]
[1744327767617,1.71377524,1517.6,1517.5,4.30482]
[1744327769913,0.00987524,1517.6,1517.5,9.30482]
[1744327770216,5.24e-06,1517.6,1517.5,19.10171971]
[1744327771216,5.24e-06,1517.6,1517.5,19.6162868]
[1744327773009,5.24e-06,1517.6,1517.5,20.2754868]
[1744327773814,5.24e-06,1517.6,1517.5,14.10171971]
[1744327778126,5.24e-06,1517.6,1517.5,8.50949971]
[1744327778322,5.24e-06,1517.6,1517.3,101.1642]
[1744327778323,5.24e-06,1517.6,1517.3,106.111]
[1744327778626,1.67970524,1517.6,1517.3,107.42985]
[1744327778817,4.29980524,1517.6,1517.3,107.42985]
[1744327779024,1.266,1517.5,1517.3,107.42985]
[1744327779218,1.266,1517.5,1517.3,106.111]
[1744327779219,2.9073,1517.5,1517.3,106.111]
[1744327779424,1.3188,1517.4,1517.3,106.111]
[1744327779628,2.9601,1517.4,1517.3,5.606]
[1744327780233,1.6413,1517.4,1517.3,6.92489]
[1744327781226,1.6413,1517.4,1517.3,10.13269]
[1744327781729,1.30140524,1517.6,1517.5,1.31872]
[1744327781730,5.24e-06,1517.6,1517.5,1.31872]
[1744327781932,1.63020524,1517.6,1517.3,8.8138]
[1744327782126,1.63020524,1517.6,1517.4,1.31874]
[1744327782324,1.63020524,1517.6,1517.5,1.31872]
[1744327782518,1.63020524,1517.6,1517.3,10.4096]
[1744327782726,1.63020524,1517.6,1517.4,1.31873]
[1744327783232,3.2078,1517.5,1517.3,5.606]
[1744327783423,1.6302,1517.4,1517.3,6.92486]
[1744327783620,1.6302,1517.4,1517.3,10.13266]
[1744327783829,5.24e-06,1517.6,1517.5,1.31872]
[1744327784029,1.63020524,1517.6,1517.4,2.91457]
[1744327784218,1.63020524,1517.6,1517.5,1.31872]
[1744327785927,1.63020524,1517.6,1517.5,4.52652]
[1744327786225,1.63020524,1517.6,1517.5,3.2078]
[1744327786823,1.63020524,1517.6,1517.5,4.52652]
[1744327787634,1.63020524,1517.6,1517.5,3.2078]
[1744327788424,2.94883524,1517.6,1517.5,3.2078]
[1744327788837,1.63020524,1517.6,1517.5,3.2078]
[1744327789040,2.94883524,1517.6,1517.5,3.2078]
[1744327789735,1.31872,1517.5,1517.3,6.92485]
[1744327789940,2.93675,1517.5,1517.3,6.92485]
[1744327790234,4.30632,1517.5,1517.3,6.92485]
[1744327790440,1.618,1517.4,1517.3,6.92485]
[1744327791738,1.618,1517.4,1517.3,5.606]
[1744327792138,2.9341,1517.4,1517.3,5.606]
[1744327792542,2.9341,1517.4,1517.3,6.92489]
[1744327796236,2.9341,1517.4,1517.3,5.606]
[1744327796743,2.9341,1517.4,1517.3,6.92489]
[1744327798043,2.9341,1517.4,1517.3,5.606]
[1744327798245,4.2529,1517.4,1517.3,5.606]
[1744327798435,1.618,1517.4,1517.3,6.92489]
[1744327800446,2.9368,1517.4,1517.3,5.606]
[1744327800646,1.618,1517.4,1517.3,5.606]
[1744327801641,1.618,1517.4,1517.3,6.92489]
[1744327802939,1.618,1517.4,1517.3,8.21809]
[1744327803851,1.618,1517.4,1517.3,7.65746609]
[1744327804145,5.24e-06,1517.6,1517.3,6.6672]
[1744327804345,1.71890524,1517.6,1517.5,4.52652]
[1744327804948,1.71890524,1517.6,1517.5,6.23472]
[1744327805350,5.24e-06,1517.6,1517.5,6.23472]
[1744327805847,5.24e-06,1517.6,1517.5,3.02692]
[1744327806047,5.24e-06,1517.6,1517.4,2.61264]
[1744327806245,4.52649524,1517.6,1517.3,5.81984]
[1744327806445,2.97722,1517.5,1517.3,4.501]
[1744327806650,4.8663,1517.4,1517.1,6.6776]
[1744327806846,1.6585,1517.3,1517.1,6.69303]
[1744327807145,1.6585,1517.3,1517.0,6.23332]
[1744327807342,4.52684,1517.2,1517.0,1.31915]
[1744327807543,1.6585,1517.1,1517.0,1.31915]
[1744327808552,4.52649524,1517.6,1517.3,1.31884]
[1744327808742,1.6585,1517.5,1517.3,1.31884]
[1744327809850,9.97719634,1517.4,1517.3,1.31884]
[1744327810348,9.97719634,1517.4,1517.3,4.31764]
[1744327810550,11.66249634,1517.4,1517.3,4.31764]
[1744327811347,9.97719634,1517.4,1517.3,4.31764]
[1744327812951,9.97719634,1517.4,1517.3,2.57554]
[1744327813158,12.94049634,1517.4,1517.3,1.2567]
[1744327813353,17.94052634,1517.4,1517.0,9.8791]
[1744327813552,1.6445,1517.3,1517.1,1.319]
[1744327814257,1.6445,1517.3,1517.2,1.31898]
[1744327816257,1.6654,1517.5,1517.4,7.57794]
[1744327816854,9.288082,1517.5,1517.4,7.57794]
[1744327817356,7.622682,1517.5,1517.4,7.57794]
[1744327818459,7.622682,1517.5,1517.4,4.37014]
[1744327818661,9.301582,1517.5,1517.4,4.37014]
[1744327819860,1.6789,1517.5,1517.4,4.37014]
[1744327820060,1.6789,1517.5,1517.4,7.57794]
[1744327821055,5.24e-06,1517.6,1517.5,1.31872]
[1744327821256,1.66740524,1517.6,1517.5,2.91182]
[1744327821459,1.66740524,1517.6,1517.5,1.31872]
[1744327821853,1.66740524,1517.6,1517.4,2.9225]
[1744327822358,1.66740524,1517.6,1517.5,1.31872]
[1744327823756,1.66740524,1517.6,1517.4,2.9225]
[1744327823962,1.66740524,1517.6,1517.3,5.374]
[1744327824161,5.81636,1517.5,1517.3,5.374]
[1744327824459,1.31891,1517.3,1517.1,6.69306]
[1744327824659,1.7267,1517.2,1517.0,2.6964]
[1744327824861,3.04568,1517.2,1517.0,2.6964]
[1744327825058,1.7267,1517.2,1517.1,1.31906]
[1744327826365,6.7267,1517.2,1516.8,16.62868946]
[1744327826662,1.31916,1517.0,1516.8,16.62868946]
[1744327826962,4.3352,1517.1,1516.8,18.51719946]
[1744327827150,1.7267,1517.0,1516.9,1.31916]
[1744327827854,1.7267,1517.0,1516.8,16.62869946]
[1744327828048,1.7267,1517.0,1516.8,15.30939946]
[1744327828256,7.13554,1516.9,1516.8,15.30939946]
[1744327828453,7.13554,1516.9,1516.7,0.00987524]
[1744327828651,1.5841,1516.8,1516.7,0.00987524]
[1744327829166,1.5841,1516.8,1516.7,1.32928524]
[1744327830465,8.61167967,1517.1,1516.9,1.3192]
[1744327830663,1.7188,1517.0,1516.8,8.28538]
[1744327831067,1.7188,1517.0,1516.8,6.9661]
[1744327831565,8.61167967,1517.1,1516.8,11.49322]
[1744327831766,1.7188,1517.0,1516.8,11.49322]
[1744327832572,1.31924,1516.9,1516.8,8.4748]
[1744327832756,1.31924,1516.9,1516.8,5.267]
[1744327832961,13.868502,1517.0,1516.8,5.267]
[1744327833265,3.03804,1516.9,1516.8,5.267]
[1744327833470,1.7188,1516.9,1516.8,5.267]
[1744327833962,3.03804,1516.9,1516.8,5.267]
[1744327835161,1.31933,1516.8,1516.7,0.00987524]
[1744327835362,2.97113,1516.8,1516.7,0.00987524]
[1744327835673,10.54243,1516.8,1516.7,0.00987524]
[1744327836170,1.31953,1516.6,1516.3,6.6208]
[1744327836364,4.8596,1516.7,1516.3,6.6208]
[1744327836561,3.02257,1516.6,1516.3,6.6208]
[1744327836764,1.703,1516.5,1516.3,6.6208]
[1744327836975,3.02259,1516.5,1516.3,6.6208]
[1744327837274,1.31967,1516.4,1516.3,5.267]
[1744327837465,2.9803,1516.4,1516.2,0.00987524]
[1744327837762,1.703,1516.4,1516.3,1.31976]
[1744327838566,1.703,1516.4,1516.3,3.05576]
[1744327841070,0.00987524,1516.6,1516.4,1.31967]
[1744327841274,1.64717524,1516.6,1516.4,8.31567]
[1744327841676,1.64717524,1516.6,1516.5,1.31959]
[1744327841877,1.64717524,1516.6,1516.5,3.04759]
[1744327842674,0.00987524,1516.6,1516.5,4.34019]
[1744327845580,0.00987524,1516.6,1516.5,9.34019]
[1744327846182,0.00987524,1516.6,1516.5,4.34019]
[1744327850583,12.231282,1517.2,1517.0,1.31913]
[1744327850783,1.5758,1517.1,1517.0,1.31913]
[1744327851884,1.5758,1517.1,1517.0,4.52693]
[1744327852083,1.5758,1517.1,1517.0,6.10953]
[1744327852292,1.5758,1517.1,1517.0,7.41273]
[1744327852794,7.63255724,1517.2,1517.1,1.31906]
[1744327852988,0.00987524,1517.2,1517.1,3.56086]
[1744327853194,0.00987524,1517.2,1517.1,2.90166]
[1744327853786,0.00987524,1517.2,1517.1,3.56086]
[1744327854694,0.00987524,1517.2,1517.1,2.90166]
[1744327855087,0.00987524,1517.2,1517.1,3.56086]
[1744327855284,0.00987524,1517.2,1517.1,2.90166]
[1744327855489,0.00987524,1517.2,1517.1,3.56086]
[1744327862195,0.00987524,1517.2,1517.1,16.94686532]
[1744327862501,1.5941,1517.6,1517.5,1.31872]
[1744327862692,1.5941,1517.6,1517.5,9.66952]
[1744327863600,1.5941,1517.6,1517.5,11.27422]
[1744327863796,0.00658876,1517.7,1517.6,1.31863]
[1744327864003,0.00658876,1517.7,1517.6,2.96553]
[1744327864702,1.64628876,1517.7,1517.6,2.96553]
[1744327866302,1.64628876,1517.7,1517.5,8.3508]
[1744327866303,1.64628876,1517.7,1517.5,6.46165]
[1744327867201,1.64628876,1517.7,1517.6,1.31863]
[1744327867806,1.64628876,1517.7,1517.6,3.02733]
[1744327868106,0.00658876,1517.7,1517.6,3.02733]
[1744327870604,0.00658876,1517.7,1517.6,1.31863]
[1744327871003,0.00658876,1517.7,1517.6,3.03473]
[1744327873101,0.00658876,1517.7,1517.6,3.69393]
[1744327875008,0.00658876,1517.7,1517.6,1.31863]
[1744327875408,1.62028876,1517.7,1517.6,1.31863]
[1744327875610,6.62028876,1517.7,1517.5,5.143]
[1744327875816,1.62028876,1517.7,1517.6,1.31863]
[1744327876007,6.62028876,1517.7,1517.5,6.46167]
[1744327876207,2.93018876,1517.7,1517.5,6.46167]
[1744327876410,1.6839,1517.6,1517.5,6.46167]
[1744327876715,1.6839,1517.6,1517.5,9.66947]
[1744327876920,0.00658876,1517.7,1517.6,1.31863]
[1744327877111,0.00658876,1517.7,1517.6,3.01073]
[1744327877411,0.00658876,1517.7,1517.6,16.63993905]
[1744327878413,5.06664445,1518.1,1517.7,3.29627]
[1744327878614,5.06664445,1518.1,1518.0,4.52608]
[1744327879419,5.06664445,1518.1,1518.0,8.2078]
[1744327879614,7.622682,1518.2,1518.0,17.56663895]
[1744327879814,6.4167405,1518.2,1518.1,7.7435]
[1744327880317,6.4167405,1518.2,1518.1,21.47822437]
[1744327880713,6.4167405,1518.2,1518.1,16.47822437]
[1744327881421,8.0434405,1518.2,1518.1,16.47822437]
[1744327881720,8.0434405,1518.2,1518.1,7.7435]
[1744327881721,1.6267,1518.2,1518.1,7.7435]
[1744327882713,1.6267,1518.2,1518.1,9.345]
[1744327883612,1.6267,1518.2,1518.1,17.98344923]
[1744327885525,1.6267,1518.2,1518.1,118.44844923]
[1744327886324,1.6267,1518.2,1518.1,116.84694923]
[1744327886623,1.6267,1518.2,1518.1,118.55114923]
[1744327887023,1.2818,1518.6,1518.5,1.31785]
[1744327887223,2.9092,1518.6,1518.5,6.45685]
[1744327887429,1.6274,1518.6,1518.5,10.32385]
[1744327888420,1.6274,1518.6,1518.5,11.63475]
[1744327889115,1.404,1518.9,1518.8,1.31759]
[1744327889321,1.3883,1519.1,1519.0,1.31741]
[1744327889623,1.404,1519.2,1519.1,1.31733]
[1744327889920,1.404,1519.2,1519.1,6.32133]
[1744327890323,9.97719634,1519.4,1519.3,1.31715]
[1744327890718,14.97719634,1519.4,1519.3,1.31715]
[1744327890919,9.97719634,1519.4,1519.3,1.31715]
[1744327891322,9.97719634,1519.4,1519.2,1.31717]
[1744327891525,1.5875,1519.3,1519.1,5.004]
[1744327891726,1.5875,1519.3,1519.2,1.31724]
[1744327893032,1.5875,1519.3,1519.2,1.97564]
[1744327893327,1.5875,1519.3,1519.2,1.31724]
[1744327893516,1.5875,1519.3,1519.2,1.97564]
[1744327894928,1.5875,1519.3,1519.2,0.6584]
[1744327895123,1.5875,1519.3,1519.2,1.97564]
[1744327895930,1.5875,1519.3,1519.2,5.18344]
[1744327896225,1.5875,1519.3,1519.2,6.88614]
[1744327897117,1.5875,1519.3,1519.2,3.67834]
[1744327897424,1.5875,1519.3,1519.2,1.97564]
[1744327897823,1.5875,1519.3,1519.2,0.6584]
[1744327898531,1.5875,1519.3,1519.2,1.97564]
[1744327903836,4.7953,1519.3,1519.1,1.31727]
[1744327904036,4.7953,1519.3,1519.1,6.31927]
[1744327904226,1.5922,1519.2,1519.1,5.002]
[1744327904425,2.9616,1519.2,1519.1,6.31933]
[1744327904629,7.9616,1519.2,1519.1,6.31933]
[1744327904829,7.9616,1519.2,1519.1,5.002]
[1744327905037,7.9616,1519.2,1519.1,6.31933]
[1744327905740,9.27884,1519.2,1519.1,2.3873]
[1744327905944,7.9616,1519.2,1518.9,5.002]
[1744327906242,3.2078,1519.0,1518.9,6.3195]
[1744327906439,4.52523,1519.0,1518.8,1.31752]
[1744327906737,3.2078,1519.0,1518.7,8.21967524]
[1744327907134,3.2078,1519.0,1518.8,1.31754]
[1744327907336,8.2078,1519.0,1518.8,1.31754]
[1744327907538,9.52522,1519.0,1518.8,1.31754]
[1744327908244,4.52522,1519.0,1518.8,1.31754]
[1744327908545,1.3175,1518.9,1518.7,6.32948524]
[1744327908737,2.63469,1518.8,1518.7,5.01187524]
[1744327908942,5.84249,1518.8,1518.7,0.00987524]
[1744327909137,10.84249,1518.8,1518.7,0.00987524]
[1744327910435,4.5249,1518.8,1518.7,1.32754524]
[1744327910630,4.5249,1518.8,1518.7,0.00987524]
[1744327911039,6.097,1518.8,1518.7,0.00987524]
[1744327911843,7.41459,1518.8,1518.7,0.00987524]
[1744327912036,12.41459,1518.8,1518.7,0.00987524]
[1744327915143,7.8892,1518.8,1518.7,0.00987524]
[1744327915346,1.2878,1519.1,1519.0,1.31741]
[1744327915540,1.2878,1519.1,1519.0,6.32041]
[1744327915936,6.2234,1519.2,1519.1,1.31733]
[1744327916342,4.8442,1519.2,1519.1,1.31733]
[1744327916538,11.29421634,1519.5,1519.3,1.3171]
[1744327916539,9.97719634,1519.5,1519.3,1.3171]
[1744327916744,9.97719634,1519.5,1519.4,1.31707]
[1744327916946,11.61359634,1519.5,1519.3,6.32013]
[1744327917139,1.6364,1519.4,1519.3,6.32013]
[1744327918342,1.6364,1519.4,1519.3,5.003]
[1744327920344,6.16127,1519.4,1519.3,5.003]
[1744327920544,4.8442,1519.4,1519.1,4.896]
[1744327920849,1.7348,1519.3,1519.2,1.31724]
[1744327921548,2.7292,1519.6,1519.5,1.31698]
[1744327921751,4.3529,1519.6,1519.4,4.896]
[1744327921949,1.6237,1519.5,1519.4,6.21307]
[1744327922145,1.6237,1519.5,1519.4,7.91987]
[1744327922348,1.6237,1519.5,1519.4,4.896]
[1744327922650,1.6237,1519.5,1519.4,6.21307]
[1744327923056,1.6237,1519.5,1519.4,4.896]
[1744327923253,2.94068,1519.5,1519.4,4.896]
[1744327923448,1.6237,1519.5,1519.4,4.896]
[1744327923756,1.6237,1519.5,1519.3,1.31715]
[1744327925845,1.6237,1519.5,1519.4,1.31707]
[1744327927153,1.6237,1519.5,1519.3,3.0519]
[1744327927357,1.6237,1519.5,1519.4,1.31707]
[1744327927857,1.6237,1519.5,1519.3,3.05189]
[1744327929467,1.6237,1519.5,1519.4,1.31707]
[1744327930050,1.6237,1519.5,1519.3,3.05191]
[1744327930450,1.3831,1519.6,1519.5,1.31698]
[1744327930762,1.3831,1519.6,1519.5,6.21298]
[1744327930963,1.6297,1519.7,1519.6,1.31689]
[1744327931150,1.6297,1519.7,1519.6,4.42429]
[1744327931547,14.53649634,1519.9,1519.7,1.31678]
[1744327931860,11.32869634,1519.9,1519.8,6.21272]
[1744327932049,13.01259634,1519.9,1519.8,6.21272]
[1744327932361,13.01259634,1519.9,1519.8,4.896]
[1744327932959,13.01259634,1519.9,1519.8,6.5781]
[1744327933157,21.22039634,1519.9,1519.6,9.5291]
[1744327933349,3.00064,1519.8,1519.6,6.3213]
[1744327933656,1.31689,1519.6,1519.5,0.00987524]
[1744327934152,1.587,1519.6,1519.5,0.00987524]
[1744327934751,2.90389,1519.6,1519.5,0.00987524]
[1744327936454,3.2078,1519.7,1519.6,1.31689]
[1744327936654,3.2078,1519.7,1519.6,1.6435]
[1744327936850,3.2078,1519.7,1519.6,2.96039]
[1744327937161,3.2078,1519.7,1519.6,9.22629]
[1744327937460,3.2078,1519.7,1519.6,7.9094]
[1744327937653,4.7898,1519.7,1519.6,7.9094]
[1744327937854,4.7898,1519.7,1519.6,9.22629]
[1744327938057,4.7898,1519.7,1519.6,7.9094]
[1744327939562,6.10661,1519.7,1519.6,7.9094]
[1744327939761,6.10661,1519.7,1519.6,4.895]
[1744327941855,1.31689,1519.6,1519.5,0.00987524]
[1744327942048,3.2078,1519.7,1519.6,1.31689]
[1744327942253,3.2078,1519.7,1519.6,3.00729]
[1744327942949,4.9234,1519.7,1519.6,3.00729]
[1744327943357,4.9234,1519.7,1519.6,1.6904]
[1744327943358,6.24021,1519.7,1519.6,1.6904]
[1744327943765,6.24021,1519.7,1519.5,2.75048524]
[1744327943766,1.31689,1519.6,1519.5,0.00987524]
[1744327943954,1.3175,1518.9,1518.8,10.25106113]
[1744327944155,9.5253,1518.9,1518.8,10.25106113]
[1744327944661,4.5253,1518.9,1518.8,10.25106113]
[1744327945057,6.1162,1518.9,1518.8,10.25106113]
[1744327945462,6.1162,1518.9,1518.8,11.93286113]
[1744327946263,6.1162,1518.9,1518.8,10.25106113]
[1744327947821,4.5253,1518.9,1518.8,11.90266113]
[1744327948067,6.2556,1518.9,1518.8,11.90266113]
[1744327948476,6.2556,1518.9,1518.8,10.25106113]
[1744327950463,1.31759,1518.8,1518.7,0.00987524]
[1744327950668,2.94589,1518.8,1518.7,0.00987524]
[1744327950865,15.16319,1518.8,1518.7,5.24e-06]
[1744327952176,4.31119,1518.8,1518.7,5.24e-06]
[1744327953371,9.31119,1518.8,1518.7,5.24e-06]
[1744327953875,15.16319,1518.8,1518.7,5.24e-06]
[1744327954383,1.31793,1518.4,1518.3,4.896]
[1744327954580,4.52571,1518.5,1518.2,2.742]
[1744327954775,3.2078,1518.5,1518.4,1.31793]
[1744327955075,1.31782,1518.6,1518.4,6.20193]
[1744327955275,1.31782,1518.6,1518.5,1.7056]
[1744327955475,14.79933703,1519.0,1518.5,6.7056]
[1744327955779,14.79933703,1519.0,1518.9,1.3175]
[1744327955780,7.63993703,1519.0,1518.9,1.3175]
[1744327955981,8.95734703,1519.0,1518.9,4.885]
[1744327956380,8.95734703,1519.0,1518.9,6.5906]
[1744327956680,8.95734703,1519.0,1518.9,16.1159]
[1744327956681,7.63993703,1519.0,1518.9,16.1159]
[1744327957280,7.63993703,1519.0,1518.9,16.7743]
[1744327957483,12.45810076,1519.0,1518.9,16.7743]
[1744327957680,10.31950076,1519.0,1518.9,16.7735]
[1744327959483,0.00987524,1519.1,1519.0,1.31741]
[1744327959677,0.00987524,1519.1,1519.0,5.35256541]
[1744327959884,0.00987524,1519.1,1519.0,18.82271135]
[1744327960881,0.00987524,1519.1,1519.0,20.24421135]
[1744327962880,7.60869247,1519.7,1519.1,3.29316]
[1744327963084,9.19699247,1519.7,1519.2,9.7522]
[1744327963287,1.5883,1519.6,1519.4,1.31703]
[1744327963488,1.5883,1519.6,1519.5,6.5444]
[1744327964886,1.5883,1519.6,1519.5,7.86138]
[1744327965584,1.31709,1519.4,1519.0,1.4215]
[1744327965779,4.8988,1519.3,1519.0,1.6931]
[1744327966083,3.2078,1519.1,1518.9,0.00987524]
[1744327966276,3.2078,1519.1,1518.9,6.21032524]
[1744327966477,1.691,1519.2,1519.0,3.01044]
[1744327966679,3.00824,1519.2,1518.9,4.89287524]
[1744327966886,3.2078,1519.1,1518.9,6.21036524]
[1744327967086,1.691,1519.0,1518.9,6.21036524]
[1744327967884,1.691,1519.0,1518.9,4.89287524]
[1744327968889,10.76695,1519.5,1519.0,1.31734]
[1744327968890,3.2078,1519.3,1519.0,1.31734]
[1744327969089,4.9412,1519.3,1519.0,3.03184]
[1744327969292,1.7334,1519.2,1519.0,1.7145]
[1744327969494,1.7334,1519.2,1518.9,6.21031524]
[1744327969792,1.7334,1519.2,1519.0,1.3174]
[1744327969990,1.7334,1519.2,1519.0,3.0319]
[1744327970492,1.7334,1519.2,1519.1,1.31733]
[1744327972892,1.7334,1519.2,1519.0,1.31737]
[1744327973191,1.3833,1519.1,1519.0,1.31737]
[1744327973387,2.7672,1519.1,1519.0,1.31737]
[1744327973588,4.486,1519.1,1519.0,1.31737]
[1744327974096,4.486,1519.1,1518.9,7.82991524]
[1744327974296,3.03621,1519.0,1518.9,4.89287524]
[1744327974496,3.03621,1519.0,1518.9,0.00987524]
[1744327981699,1.7188,1519.0,1518.9,1.32737524]